Cogmind - Beta 15 *** ADVENTURER MODE // 2025.09.04 @ 21:13:19 Player: lite Result: Destroyed by H-88 Terminator with KE Penetrator Performance ------------- Evolutions (9) 4500 Regions Visited (18) 3600 Robots Destroyed (229) 1145 Value Destroyed (11378) 11378 Prototype IDs (41) 820 Alien Tech Used (0) 0 Bonus (1932) 1932 TOTAL SCORE: 23375 Bonus ------- High Alert Combat Kills 616 Follower Combat Kills 116 Entered Garrisons 400 Entered DSFs 500 Aligned with FarCom 300 Cogmind --------- Core Integrity 0/1600 Matter 273/300 Energy 356/500 System Corruption 44% Temperature Cool (2) Movement Hovering (110) Ox1 Location -1/Access Parts ------- > --- POWER (3) -------- (None) > --- PROPULSION (7) --- Improved Gyrokinetic Inverter > --- UTILITY (11) ----- Experimental Power Amplifier Improved Energy Well (fused) Advanced Visual Processing Unit Advanced Target Analyzer Experimental Core Analyzer Graphene Brace > --- WEAPON (4) ------- Improved Remote Datajack > --- INVENTORY (5) ---- (None) Peak State ------------ > --- POWER ------------ Quantum Reactor Quantum Reactor Quantum Reactor > --- PROPULSION ------- Myomer Leg Biometal Leg Improved Thunder Leg High-density Centrium Leg High-density Centrium Leg High-density Centrium Leg Cooled Linear Gravjet > --- UTILITY ---------- Advanced Heat Sink Advanced Heat Sink Medium Storage Unit Improved Energy Well Matter Compressor Advanced Target Analyzer Experimental Core Analyzer Improved Transmission Jammer Experimental Thermal Shield Advanced Component Analysis Suite Advanced Recalibrator > --- WEAPON ----------- Precision Phase Gun Enhanced Nova Cannon Enhanced Hardcell Cannon Graviton Cannon > --- INVENTORY -------- Quantum Reactor Quantum Reactor Quantum Reactor Antigrav Array Advanced Visual Processing Unit Advanced ECM Suite Graphene Brace Enhanced Nova Cannon Enhanced Gamma Bomb Array [Rating: 205] Favorites ----------- Power Micro Fission Core Engine Deuterium Engine Power Core Micro Fission Core Reactor Quantum Reactor Propulsion Myomer Leg Treads Improved Treads Leg Myomer Leg Wheel Wheel Hover Unit Antigrav System Utility Advanced Heat Sink Device Advanced Heat Sink Storage Medium Storage Unit Processor Improved Target Analyzer Protection Improved Light Armor Plating Weapon Shotgun Energy Gun Tesla Rifle Energy Cannon Enhanced Nova Cannon Ballistic Gun Shotgun Ballistic Cannon Enhanced Hardcell Cannon Launcher Enhanced Gamma Bomb Array Special Weapon Improved Remote Datajack Special Melee Weapon Datajack Build | -11 -10 -10 -10 -9 -8 -7 -6 -6 -6 -5 -5 -5 -4 -3 -2 -2 -2 -1 ------- Run | Yrd Mat Min Exi Min Mat Fac Fac DSF Gar Fac Upp Upp Fac Res Res Gar Res Acc Slots Evolved 18 | . . . . . 4 2 2 . . 2 . . 2 2 2 . . 2 Power 2 | . . . . . 1 . . . . . . . 1 . . . . . Propulsion 5 | . . . . . . 2 . . . . . . . 2 1 . . . Utility 9 | . . . . . 2 . 2 . . 1 . . 1 . 1 . . 2 Weapon 2 | . . . . . 1 . . . . 1 . . . . . . . . Parts Attached 262 | 6 7 3 2 . 17 2 4 17 4 25 6 2 45 2 . 30 23 67 Power 49 | 1 1 . . . 3 . . 4 1 4 1 . 8 . . 6 5 15 Engine 11 | 1 1 . . . 2 . . 4 1 2 . . . . . . . . Core 14 | . . . . . 1 . . . . 2 1 . 8 . . 2 . . Reactor 24 | . . . . . . . . . . . . . . . . 4 5 15 Propulsion 66 | 2 2 1 2 . . 1 . 3 2 5 1 . 9 2 . 13 7 16 Treads 2 | . 1 . . . . . . . . . 1 . . . . . . . Leg 45 | 2 1 1 2 . . . . 3 2 4 . . 1 . . 11 7 11 Wheel 4 | . . . . . . 1 . . . . . . 3 . . . . . Hover 15 | . . . . . . . . . . 1 . . 5 2 . 2 . 5 Flight . | . . . . . . . . . . . . . . . . . . . Utility 78 | 1 1 2 . . 7 . 3 2 . 9 3 2 16 . . 5 7 20 Device 55 | 1 1 1 . . 3 . 2 1 . 6 3 1 12 . . 3 6 15 Storage 9 | . . . . . 2 . . . . 3 . . 2 . . . . 2 Processor 8 | . . 1 . . 1 . . 1 . . . . 1 . . . 1 3 Hackware . | . . . . . . . . . . . . . . . . . . . Protection 6 | . . . . . 1 . 1 . . . . 1 1 . . 2 . . Artifact . | . . . . . . . . . . . . . . . . . . . Weapon 69 | 2 3 . . . 7 1 1 8 1 7 1 . 12 . . 6 4 16 Energy Gun 31 | 1 1 . . . 3 1 1 . . 3 1 . 6 . . 5 2 7 Energy Cannon 7 | . . . . . . . . 2 . 1 . . 1 . . . . 3 Ballistic Gun 10 | 1 2 . . . 1 . . . 1 1 . . 3 . . 1 . . Ballistic Cannon 8 | . . . . . . . . 1 . 2 . . . . . . 2 3 Launcher 5 | . . . . . . . . 4 . . . . . . . . . 1 Special Weapon 6 | . . . . . 1 . . 1 . . . . 2 . . . . 2 Impact Weapon . | . . . . . . . . . . . . . . . . . . . Slashing Weapon . | . . . . . . . . . . . . . . . . . . . Piercing Weapon . | . . . . . . . . . . . . . . . . . . . Special Melee Weapon 2 | . . . . . 2 . . . . . . . . . . . . . Unidentified Prototypes 3 | . . 1 . . . . . . . 1 . . . . . . . 1 Parts Lost 89 | . . . . . 1 . . 3 9 3 10 1 16 . . 1 1 44 Power 14 | . . . . . 1 . . . . 1 1 . 2 . . . 1 8 Propulsion 21 | . . . . . . . . . 2 1 2 . 3 . . . . 13 Utility 28 | . . . . . . . . 2 3 . 3 1 6 . . 1 . 12 Weapon 26 | . . . . . . . . 1 4 1 4 . 5 . . . . 11 Highest Loss Streak 18 | . . . . . 1 . . 2 9 2 6 2 10 . . 1 1 18 To Critical Strikes 3 | . . . . . . . . . . . 1 . 1 . . . . 1 Average Backups 7 | 2 3 4 5 5 5 8 8 9 7 8 6 4 7 8 7 8 9 8 Power . | . . . . . . . . . 1 . 1 1 . 1 1 . . 1 Propulsion . | 1 2 . . . . . . 1 1 1 . . 1 1 . 1 2 . Utility 2 | . . 2 3 3 2 3 2 . . 3 4 3 3 3 2 2 3 2 Weapon 2 | . . . . . 1 2 4 4 3 1 . . 1 2 2 3 3 4 Tool/Special . | . . . . . . . . . . . . . . . . . . . Unused Backups 36 | . 2 2 . . . 2 . 1 . 5 . . 5 . . 5 10 4 Power 2 | . . . . . . . . . . . . . . . . . 1 1 Propulsion 11 | . 1 2 . . . 1 . . . . . . 2 . . 2 3 . Utility 15 | . . . . . . 1 . 1 . 4 . . 1 . . 1 5 2 Weapon 7 | . 1 . . . . . . . . . . . 2 . . 2 1 1 Tool/Special 1 | . . . . . . . . . . 1 . . . . . . . . Average Slot Usage (%) 96 | . 91 100 100 100 99 90 88 98 93 95 97 90 90 94 92 99 99 97 Engine 3 | . 14 14 14 14 8 7 4 11 11 8 . . . . . . . . Core 5 | . . . . . 8 7 6 1 . 2 10 11 12 14 13 4 . . Reactor 3 | . . . . . . . . . . . . . . . . 8 12 11 Leg 20 | . 28 28 28 28 18 15 13 24 24 22 18 17 9 4 7 25 30 25 Hover 1 | . . . . . . . . . . . . . 5 20 21 3 . 1 Device 22 | . 20 17 14 14 13 15 17 20 17 16 27 26 30 28 28 26 27 25 Storage 6 | . . . . . 3 6 6 6 6 10 11 6 5 4 4 4 4 11 Processor 6 | . . 10 14 14 9 7 6 6 13 10 1 . 2 4 4 4 4 6 Protection 2 | . . . . . 8 . 5 5 . . . 3 . . . 3 2 . Energy Gun 7 | . . . . . 8 9 13 2 9 5 9 5 7 9 8 8 8 7 Ballistic Gun 8 | . 26 28 28 28 14 12 6 . . 3 5 5 7 4 4 7 2 . Ballistic Cannon 2 | . . . . . . . . 3 4 5 5 5 . . . . 5 6 Peak Build Rating 205 | 6 11 19 36 36 55 61 68 78 73 82 85 83 112 124 129 150 178 205 Average Rating 105 | 3 9 17 22 36 50 57 65 74 66 70 82 81 93 117 126 145 162 193 On Entrance 70 | . 6 11 18 36 36 51 61 68 70 50 82 77 83 112 117 129 150 175 Naked Turns . | . . . . . . . . . . . . . . . . . . . Heaviest Build 138 | 6 16 16 14 14 51 40 45 66 54 62 68 61 70 49 50 94 109 138 Greatest Support 201 | 20 20 20 60 60 60 60 60 80 98 101 101 86 86 52 52 178 178 201 Greatest Overweight (x) 2 | . . . . . . . . . . . . . 1 . . 1 . 2 Average Overweight (x) . | . . . . . . . . . . . . . . . . . . . Largest Inventory Capacity 15 | 5 5 5 5 5 15 10 10 10 10 10 10 10 10 10 10 10 10 10 Average Capacity 9 | 5 5 5 5 5 8 9 10 10 10 10 10 10 8 10 10 10 10 9 Most Carried 10 | 5 5 5 5 5 8 10 10 10 10 10 10 6 10 10 9 10 10 10 Average Carried 7 | 2 3 4 5 5 5 8 8 9 7 8 6 4 7 9 7 9 9 8 Final Capacity 10 | 5 5 5 5 5 5 10 10 10 10 10 10 10 10 10 10 10 10 5 Final Carried 10 | 4 5 5 5 5 5 10 8 10 3 10 6 4 10 9 8 10 10 . Class Distribution -------------------- 36% | Scavenger-Tank 20% | Skirmisher 14% | Scavenger-Skirmisher 9% | Scavenger-Gunner 8% | Mutant 6% | Assassin Dominant Class ---------------- Mutant | -10/Materials Mutant | -10/Mines Mutant | -10/Exiles Skirmisher | -9/Mines Skirmisher | -8/Materials Skirmisher | -7/Factory Skirmisher | -6/Factory Skirmisher | -6/DSF Skirmisher | -6/Garrison Scavenger-Skirmisher | -5/Factory Scavenger-Tank | -5/Upper Caves Tank | -5/Upper Caves Scavenger-Skirmisher | -4/Factory Scavenger-Tank | -3/Research Scavenger-Tank | -2/Research Scavenger-Tank | -2/Garrison Scavenger-Tank | -2/Research Scavenger-Tank | -1/Access Resources | -11 -10 -10 -10 -9 -8 -7 -6 -6 -6 -5 -5 -5 -4 -3 -2 -2 -2 -1 ----------- Run | Yrd Mat Min Exi Min Mat Fac Fac DSF Gar Fac Upp Upp Fac Res Res Gar Res Acc Matter Collected 9513 | 264 156 150 . 20 818 72 70 192 . 842 384 53 981 . 124 1051 1205 3131 Remotely . | . . . . . . . . . . . . . . . . . . . Salvage Created 11737 | 45 255 142 . . 1111 66 . 333 . 853 293 172 1187 . . 1123 1105 5052 Parts 485 | 2 24 7 . . 44 4 . 17 . 32 13 1 72 . . 31 38 200 Haulers Intercepted 4 | . . . . . 1 . . . . . . . . . . . 1 2 Recyclers Shooed 8 | . . . . . . . . . . 2 . . 1 . . . . 5 Parts Field Recycled 16 | . . . . . . . . . . . . . 16 . . . . . Retrieved Matter 125 | . . . . . . . . . . . . . 125 . . . . . Parts Self-Destructed 11 | . . . . . . . . . . . 10 1 . . . . . . Prevented . | . . . . . . . . . . . . . . . . . . . Kills | -11 -10 -10 -10 -9 -8 -7 -6 -6 -6 -5 -5 -5 -4 -3 -2 -2 -2 -1 ------- Run | Yrd Mat Min Exi Min Mat Fac Fac DSF Gar Fac Upp Upp Fac Res Res Gar Res Acc Combat Hostiles Destroyed 160 | 1 9 4 . . 16 1 . 8 . 6 8 3 13 . . 15 19 57 Guns 94 | 1 9 4 . . 16 1 . 5 . 2 4 1 10 . . 14 12 15 Cannons 60 | . . . . . . . . 1 . 4 4 2 2 . . . 7 40 AOE 4 | . . . . . . . . 2 . . . . . . . . . 2 Classes Destroyed 19 | 1 2 . . . 5 2 . 2 . 2 2 . . . . 2 . 1 Worker 14 | . . . . . . . . . . 5 . . 1 . . . 1 7 Builder 15 | . . . . . . 1 . . . 3 . . 1 . . . 3 7 Tunneler 2 | . . . . . 1 . . . . . . . 1 . . . . . Hauler 4 | . . . . . 1 . . . . . . . . . . . 1 2 Recycler 17 | . . . . . 2 . . . . 3 . . 3 . . . . 9 Mechanic 2 | . . . . . . . . . . 1 . . 1 . . . . . Operator 1 | . . . . . . . . . . . . . . . . . . 1 Watcher 12 | . 3 . . . 2 1 . . . . . . . . . . . 6 Swarmer 24 | . 6 . . . . . . 3 . . 3 . . . . 6 3 3 Cutter 2 | . . . . . . . . 2 . . . . . . . . . . Grunt 53 | 1 3 4 . . 13 . . . . 4 . 2 1 . . 6 8 11 Brawler 2 | . . . . . . . . . . . 1 1 . . . . . . Duelist 3 | . . . . . . . . . . . 1 . . . . 1 . 1 Sentry 11 | . . . . . 3 . . 1 . . 1 . . . . 1 1 4 Demolisher 1 | . . . . . . . . . . . . . . . . 1 . . Specialist 1 | . . . . . . . . 1 . . . . . . . . . . Hunter 10 | . . . . . 1 . . 1 . . . . 2 . . . . 6 Programmer 54 | . . . . . . 1 . . . 2 2 . 10 . . . 7 32 Behemoth 1 | . . . . . . . . . . . . . . . . 1 . . Best Kill Streak 9 | 1 4 4 . . 4 2 . 3 . 6 3 3 3 . . 3 6 9 Combat Bots Only 6 | 1 4 4 . . 2 1 . 3 . 4 3 3 2 . . 3 5 6 Max Kills in Single Turn 3 | 1 2 1 . . 2 2 . 2 . 3 1 2 1 . . 1 2 2 Gunslinging 1 | . 1 . . . . . . . . . . . . . . . . . Exploded 2 | . . . . . . . . 2 . . . . . . . . . 1 Melee . | . . . . . . . . . . . . . . . . . . . Uniques/NPCs Destroyed . | . . . . . . . . . . . . . . . . . . . Combat | -11 -10 -10 -10 -9 -8 -7 -6 -6 -6 -5 -5 -5 -4 -3 -2 -2 -2 -1 -------- Run | Yrd Mat Min Exi Min Mat Fac Fac DSF Gar Fac Upp Upp Fac Res Res Gar Res Acc Hostile Shots Fired 2216 | 5 21 14 . . 66 1 . 172 172 67 138 15 174 . . 88 164 1119 Missed 769 | 2 9 7 . . 22 . . 63 73 25 58 4 51 . . 27 48 380 Intercepted 1 | . . . . . . . . . . . . . . . . 1 . . Hits 1447 | 3 12 7 . . 44 1 . 109 99 42 80 11 123 . . 61 116 739 Melee 10 | . . . . . . . . 4 . . 1 4 . . . 1 . . Projectile 1437 | 3 12 7 . . 44 1 . 105 99 42 79 7 123 . . 60 116 739 AOE 5 | . . . . . . . . 2 . . . . . . . 1 . 2 Critical Strikes 82 | . . . . . 2 . . 11 2 5 4 1 9 . . 4 6 38 Actively Blocked 45 | . . . . . . . . . . . . . 6 . . 4 6 29 Part Disruptions 10 | . . . . . . . . . . 1 . . 1 . . . 2 6 Damage Taken 20691 | 24 93 74 . . 519 12 . 1859 1195 813 1480 215 1828 . . 1032 1441 10106 Core 3104 | 16 10 24 . . 116 . . 199 169 115 296 71 284 . . 78 118 1608 Absorbed by Shields 1320 | . . . . . 62 . . . 3 . . . . . . . 254 1001 Redirected to Shielding 72 | . . . . . . . . . . . . . 72 . . . . . Ignored by Resistances 7726 | 8 32 24 . . 166 4 . 527 344 216 553 102 577 . . 390 954 3829 Regen/Repaired (Parts) 469 | . . . . . 65 . 49 . . 86 . . 269 . . . . . Core Remaining (%) 79 | 93 . . . 80 78 100 . . 56 . . 51 75 100 . . 86 . Volleys Fired 561 | 4 16 9 . . 60 6 . 27 1 37 20 5 58 1 . 84 46 187 Largest 4 | 2 2 2 . . 3 3 . 3 3 4 4 3 4 1 . 4 4 4 Hottest 347 | 60 46 46 . . 120 152 . 235 165 242 240 160 230 7 . 257 304 347 Shots Fired 1612 | 8 32 18 . . 171 15 . 65 3 90 56 14 148 1 . 209 182 600 Gun 1069 | 8 32 18 . . 170 15 . 16 3 51 31 9 127 . . 209 97 283 Cannon 515 | . . . . . . . . 39 . 39 25 5 12 . . . 85 310 Launcher 14 | . . . . . . . . 8 . . . . . . . . . 6 Special 14 | . . . . . 1 . . 2 . . . . 9 1 . . . 1 Kinetic 789 | 4 32 18 . . 116 8 . 13 1 39 42 10 76 . . 84 92 254 Thermal 689 | 4 . . . . 55 6 . 42 1 42 13 4 24 . . 112 90 296 Explosive 8 | . . . . . . . . 8 . . . . . . . . . . Electromagnetic 113 | . . . . . . 1 . . 1 9 1 . 39 . . 13 . 49 Robot Hit Streak 35 | 3 6 13 . . 23 3 . 10 1 25 5 4 35 3 . 17 10 22 Robot Miss Streak 7 | 1 4 1 . . 7 2 . 6 2 4 3 2 4 . . 4 4 4 Penetration Max 1 | . . . . . 1 1 . . . . 1 . 1 . . 1 1 . Secondary Targets 6 | . 2 . . . 1 . . . . . . . . . . 3 . . Max Gunslinging Chain 1 | . 1 . . . 1 . . . . . . . . . . 1 . . Shots Hit Robots 1034 | 5 24 16 . . 120 9 . 43 2 57 34 11 112 1 . 104 113 383 Core Hits 452 | 2 19 12 . . 47 6 . 24 . 31 19 8 49 . . 40 35 160 Critical Kills 15 | . . . . . . . . . . . . . 1 . . 3 5 6 Critical Parts Destroyed 19 | . . . . . . . . . . 1 . . . . . 3 7 8 Critical Strikes 91 | . . . . . 1 . . . . 1 4 . 3 . . 7 17 58 Burn 20 | . . . . . . . . . . . . . . . . . 1 19 Destroy 39 | . . . . . 1 . . . . 1 . . 1 . . 7 13 16 Blast 29 | . . . . . . . . . . . 4 . . . . . 3 22 Corrupt 3 | . . . . . . . . . . . . . 2 . . . . 1 Melee Attacks . | . . . . . . . . . . . . . . . . . . . Impact . | . . . . . . . . . . . . . . . . . . . Slashing . | . . . . . . . . . . . . . . . . . . . Piercing . | . . . . . . . . . . . . . . . . . . . Sneak Attacks . | . . . . . . . . . . . . . . . . . . . Combat Hostiles . | . . . . . . . . . . . . . . . . . . . Follow-up Attacks . | . . . . . . . . . . . . . . . . . . . Damage Inflicted 31670 | 46 310 293 . . 1626 208 . 1610 53 1855 1185 336 2213 . . 2336 4421 15178 Guns 16856 | 46 310 284 . . 1615 208 . 271 53 939 432 210 1963 . . 2336 2135 6054 Cannons 13284 | . . . . . . . . 527 . 649 753 126 237 . . . 2257 8735 Explosions 1468 | . . . . . . . . 812 . 267 . . . . . . . 389 Melee . | . . . . . . . . . . . . . . . . . . . Ramming 62 | . . 9 . . 11 . . . . . . . 13 . . . 29 . Kinetic 16052 | 13 310 284 . . 1163 106 . 234 24 569 891 240 1305 . . 1315 2451 7147 Thermal 13035 | 33 . . . . 452 85 . 564 12 880 294 96 634 . . 933 1941 7111 Explosive 1254 | . . . . . . . . 812 . 267 . . . . . . . 175 Electromagnetic 1267 | . . . . . . 17 . . 17 139 . . 261 . . 88 . 745 Impact . | . . . . . . . . . . . . . . . . . . . Slashing . | . . . . . . . . . . . . . . . . . . . Piercing . | . . . . . . . . . . . . . . . . . . . Highest Corruption 44 | . . . . . . . . . 1 1 11 12 5 . . . 7 44 Average Corruption 8 | . . . . . . . . . 1 1 7 11 3 . . . 4 15 Corruption Purged 12 | . . . . . . . . . . . . . 2 . . . 3 7 Corruption Blocked . | . . . . . . . . . . . . . . . . . . . Effects 237 | . . . . . . . . . . 1 21 4 45 . . . 16 150 Message Errors 50 | . . . . . . . . . . . 3 3 13 . . . 6 25 Matter Fused 55 | . . . . . . . . . . 1 6 . 12 . . . 4 32 Heat Flow Errors 30 | . . . . . . . . . . . 2 . 5 . . . 2 21 Energy Discharges 27 | . . . . . . . . . . . 3 . 4 . . . 2 18 Parts Rejected 2 | . . . . . . . . . . . . . . . . . . 2 Parts Fused 9 | . . . . . . . . . . . 2 . . . . . . 7 Data Loss (minor) 22 | . . . . . . . . . . . 3 . 8 . . . . 11 Data Loss (major) 7 | . . . . . . . . . . . 1 . 2 . . . 1 3 Misfires 6 | . . . . . . . . . . . 1 . 1 . . . . 4 Alerts 3 | . . . . . . . . . . . . . . . . . 1 2 Misdirections 5 | . . . . . . . . . . . . . . . . . . 5 Weapon Failures 21 | . . . . . . . . . . . . 1 . . . . . 20 Overload Shots . | . . . . . . . . . . . . . . . . . . . Overflow Damage 724 | . . . . . . . . . . 157 33 . 24 . . . 138 372 Projectiles 533 | . . . . . . . . . . . 33 . 24 . . . 138 338 Explosions 191 | . . . . . . . . . . 157 . . . . . . . 34 Melee . | . . . . . . . . . . . . . . . . . . . Knockbacks 74 | . . . . . . . . 2 . 2 3 1 3 . . . 25 38 Impact . | . . . . . . . . . . . . . . . . . . . Kinetic 70 | . . . . . . . . 2 . 2 3 1 3 . . . 23 36 Secondary 4 | . . . . . . . . . . . . . . . . . 2 2 Self-Inflicted Damage 402 | . . . . . . . . 53 . 47 . . . . . . . 302 Shots 13 | . . . . . . . . 2 . 1 . . . . . . . 10 Rammed . | . . . . . . . . . . . . . . . . . . . Targets Rammed 9 | . . 5 . . 2 . . . . . . . 1 . . . 1 . Kicked 9 | . . 5 . . 2 . . . . . . . 1 . . . 1 . Crushed . | . . . . . . . . . . . . . . . . . . . Highest Temperature 485 | 58 . 7 . . 316 30 . 20 84 199 417 198 197 . . 313 409 485 Average Temperature 116 | 37 . 3 . . 98 11 . 8 35 85 134 110 69 . . 66 136 142 Received Heat Transfer 2059 | 18 42 54 . . 292 . . 251 162 288 315 81 51 . . 135 180 190 Effects 28 | . . . . . 3 . . . . . 1 . . . . 1 2 21 Shutdowns 14 | . . . . . . . . . . . . . . . . 1 2 11 Energy Bleed 5 | . . . . . 1 . . . . . . . . . . . . 4 Interference 5 | . . . . . 2 . . . . . . . . . . . . 3 Short Circuit 1 | . . . . . . . . . . . . . . . . . . 1 Damage (minor) 3 | . . . . . . . . . . . 1 . . . . . . 2 Siege Activations . | . . . . . . . . . . . . . . . . . . . Martial Activations . | . . . . . . . . . . . . . . . . . . . Shielding Activations . | . . . . . . . . . . . . . . . . . . . Robots Disrupted . | . . . . . . . . . . . . . . . . . . . Combat Hostiles . | . . . . . . . . . . . . . . . . . . . Robots Corrupted . | . . . . . . . . . . . . . . . . . . . Combat Hostiles . | . . . . . . . . . . . . . . . . . . . Parts Fried 3 | . . . . . . . . . . . . . . . . . . 3 Impact Corruptions . | . . . . . . . . . . . . . . . . . . . Robots Melted 1 | . . . . . . . . . . . . . 1 . . . . . Combat Hostiles 1 | . . . . . . . . . . . . . 1 . . . . . Parts Melted 20 | . . . . . 1 . . . . 2 . 1 1 . . 1 2 12 Heat Transferred 17913 | 75 . . . . 888 148 . 986 25 1620 561 200 1161 . . 1123 2331 8795 Parts Sabotaged . | . . . . . . . . . . . . . . . . . . . Parts Stolen . | . . . . . . . . . . . . . . . . . . . Parts Stripped . | . . . . . . . . . . . . . . . . . . . Power Chain Reactions 2 | . . . . . . . . . . . . . . . . . . 2 Alert | -11 -10 -10 -10 -9 -8 -7 -6 -6 -6 -5 -5 -5 -4 -3 -2 -2 -2 -1 ------- Run | Yrd Mat Min Exi Min Mat Fac Fac DSF Gar Fac Upp Upp Fac Res Res Gar Res Acc Maximum Alert Level 4 | . . . . . . . . 1 1 . . . . . . 4 2 1 Low Security (%) 74 | 100 100 100 . 100 100 100 100 84 . 100 . . 100 100 100 9 . 56 Level 1 14 | . . . . . . . . 15 100 . . . . . . 24 17 43 Level 2 8 | . . . . . . . . . . . . . . . . 23 82 . Level 3 1 | . . . . . . . . . . . . . . . . 22 . . Level 4 1 | . . . . . . . . . . . . . . . . 20 . . Level 5 . | . . . . . . . . . . . . . . . . . . . High Security . | . . . . . . . . . . . . . . . . . . . Max Security . | . . . . . . . . . . . . . . . . . . . Peak Influence 1336 | 10 174 105 . . 98 36 . 387 276 148 . . 68 . 23 1336 654 390 Initial 654 | . . 33 . . . 1 . . 256 122 . . 22 . . 8 654 309 Average 151 | 1 98 42 . . 9 2 . 122 251 55 . . 4 . 18 687 494 194 Influence Increases 6747 | 20 231 115 . . 614 52 . 417 105 311 215 70 412 . 33 1338 637 2177 Destroy 0b10 Robot/C 3260 | 20 180 80 . . 360 20 . 160 . 120 160 60 260 . . 320 380 1140 Destroy 0b10 Robot/NC 335 | . 15 . . . 30 10 . . . 60 . . 35 . . . 25 160 Destroy Leader 602 | . 36 20 . . 76 12 . 30 . 20 10 10 60 . . 20 82 226 Allied During Kill 13 | . . . . . 10 1 . . . . . . . . . 2 . . Successful Hack 168 | . . . . . 9 9 . . . . . . . . 33 12 45 60 Disable Machine 234 | . . . . . 54 . . 18 . 27 . . 45 . . 9 18 63 Anti-Garrison Action 700 | . . . . . . . . . . . . . . . . 700 . . Destroy Structure 685 | . . . . . . . . 44 . 54 . . 12 . . 35 72 468 Partial Spotted 15 | . . . . . . . . . . . . . . . . . . 15 Lose Combat Pursuer 735 | . . 15 . . 75 . . 165 105 30 45 . . . . 240 15 45 Influence Decreases 6747 | 20 130 211 5 . 609 57 . 30 221 581 216 30 452 . 20 15 1382 2768 Entered New Map 1345 | . . 68 5 . . 4 . . 131 149 1 . 18 . . 5 682 282 Time Decay 4697 | 20 130 143 . . 589 37 . . . 402 155 20 381 . 20 . 690 2110 Lost Part 669 | . . . . . . . . 30 90 30 60 10 53 . . 10 10 376 Lost Ally 36 | . . . . . 20 16 . . . . . . . . . . . . Squads Dispatched 46 | . 1 . . . 3 1 1 3 . 4 . . 12 . . . 7 14 Investigation 6 | . 1 . . . 1 . 1 . . . . . 2 . . . 1 . Extermination 27 | . . . . . . 1 . . . 2 . . 8 . . . 3 13 Reinforcement 9 | . . . . . 2 . . 3 . 1 . . 2 . . . . 1 Assault . | . . . . . . . . . . . . . . . . . . . Garrison 4 | . . . . . . . . . . 1 . . . . . . 3 . Intercept . | . . . . . . . . . . . . . . . . . . . Searches Triggered . | . . . . . . . . . . . . . . . . . . . Construction Impeded 3 | . . . . . 1 . . . . 1 . . . . . . . 1 Haulers Reinforced 1 | . . . . . . . . . . . . . 1 . . . . . Active Scanning Responses . | . . . . . . . . . . . . . . . . . . . Cargo Convoy Interrupts . | . . . . . . . . . . . . . . . . . . . Stealth | -11 -10 -10 -10 -9 -8 -7 -6 -6 -6 -5 -5 -5 -4 -3 -2 -2 -2 -1 --------- Run | Yrd Mat Min Exi Min Mat Fac Fac DSF Gar Fac Upp Upp Fac Res Res Gar Res Acc Distress Signals 8 | . 2 . . . 2 . . . . . . . 1 1 . . . 2 Communications Jammed 50 | . . . . . . . . . . . . . . . . . . 50 Distress Signals 50 | . . . . . . . . . . . . . . . . . . 50 Times Spotted 278 | 1 12 6 . . 26 2 . 22 22 9 22 3 17 2 . 28 22 84 Peak Tracking Total 21 | 1 4 5 . . 5 1 . 12 21 5 8 2 4 4 . 12 6 9 Tactical Retreats 25 | . . 1 . . 1 . . 5 3 1 4 . 1 . . 5 1 3 Traps | -11 -10 -10 -10 -9 -8 -7 -6 -6 -6 -5 -5 -5 -4 -3 -2 -2 -2 -1 ------- Run | Yrd Mat Min Exi Min Mat Fac Fac DSF Gar Fac Upp Upp Fac Res Res Gar Res Acc Traps Triggered 15 | . 1 . . . 1 . . 1 2 3 . . . . . 3 1 3 Indirectly . | . . . . . . . . . . . . . . . . . . . Trap Hack Attempts . | . . . . . . . . . . . . . . . . . . . Triggered . | . . . . . . . . . . . . . . . . . . . Disarmed . | . . . . . . . . . . . . . . . . . . . Reprogrammed . | . . . . . . . . . . . . . . . . . . . Reused . | . . . . . . . . . . . . . . . . . . . Traps Extracted . | . . . . . . . . . . . . . . . . . . . Installed . | . . . . . . . . . . . . . . . . . . . Triggered . | . . . . . . . . . . . . . . . . . . . Machines | -11 -10 -10 -10 -9 -8 -7 -6 -6 -6 -5 -5 -5 -4 -3 -2 -2 -2 -1 ---------- Run | Yrd Mat Min Exi Min Mat Fac Fac DSF Gar Fac Upp Upp Fac Res Res Gar Res Acc Machines Disabled 28 | . . . . . 6 . . 2 . 3 . . 5 . . 3 2 7 Max in Single Turn 1 | . . . . . 1 . . 1 . 1 . . 1 . . 1 1 1 Garrison Relay 2 | . . . . . . . . . . . . . . . . 2 . . Machines Repaired . | . . . . . . . . . . . . . . . . . . . Machines Dismantled 3 | . . . . . 3 . . . . . . . . . . . . . Machines Sabotaged . | . . . . . . . . . . . . . . . . . . . Overloaded Fab Kills . | . . . . . . . . . . . . . . . . . . . Hacking | -11 -10 -10 -10 -9 -8 -7 -6 -6 -6 -5 -5 -5 -4 -3 -2 -2 -2 -1 --------- Run | Yrd Mat Min Exi Min Mat Fac Fac DSF Gar Fac Upp Upp Fac Res Res Gar Res Acc Machines Accessed 42 | . 2 . 5 . 6 2 2 . . 3 . . 4 . 2 2 5 9 Terminals 20 | . 2 . . . 4 1 1 . . 2 . . 2 . 1 2 . 5 Fabricators 5 | . . . . . . 1 . . . . . . . . . . 2 2 Repair Stations 6 | . . . . . 1 . 1 . . 1 . . 2 . . . 1 . Recycling Units 3 | . . . . . 1 . . . . . . . . . . . . 2 Scanalyzers 1 | . . . . . . . . . . . . . . . . . 1 . Garrison Access 2 | . . . . . . . . . . . . . . . 1 . 1 . Total Hacks 143 | . 4 . 50 . 20 4 6 . . 13 . . 21 . 3 3 6 13 Successful 108 | . 3 . 50 . 16 3 5 . . 7 . . 12 . 2 1 3 6 Failed 34 | . 1 . . . 3 1 1 . . 6 . . 9 . 1 2 3 7 Catastrophic 8 | . . . . . 1 . . . . 1 . . 1 . . . 2 3 Database Lockouts 1 | . . . . . 1 . . . . . . . . . . . . . Manual 2 | . . . 2 . . . . . . . . . . . . . . . Terminals 54 | . 4 . . . 15 2 1 . . 11 . . 10 . 1 3 . 7 Fabricators 6 | . . . . . . 2 . . . . . . . . . . 2 2 Repair Stations 24 | . . . . . 4 . 5 . . 2 . . 11 . . . 2 . Recycling Units 5 | . . . . . 1 . . . . . . . . . . . . 4 Scanalyzers 1 | . . . . . . . . . . . . . . . . . 1 . Garrison Access 3 | . . . . . . . . . . . . . . . 2 . 1 . Terminal Hacks 84 | . 3 . 50 . 11 1 1 . . 5 . . 6 . 1 1 . 5 Record 68 | . 2 . 49 . 10 . . . . 2 . . 1 . . . . 4 Prototype ID Bank 1 | . . . . . . . . . . 1 . . . . . . . . Open DSF 2 | . . . . . . 1 1 . . . . . . . . . . . Emergency Access Points 2 | . . . . . . . . . . 1 . . 1 . . . . . Alert Level 5 | . 1 . . . 1 . . . . 1 . . 2 . . . . . Locate Traps 2 | . . . . . . . . . . . . . 1 . 1 . . . Dispatch Records 1 | . . . . . . . . . . . . . 1 . . . . . Extermination Status 1 | . . . . . . . . . . . . . . . . . . 1 Patrol Navigation 1 | . . . . . . . . . . . . . . . . 1 . . Proto ID Catalog 1 | . . . 1 . . . . . . . . . . . . . . . Fabricator Hacks 5 | . . . . . . 2 . . . . . . . . . . 2 1 Network Status 3 | . . . . . . 1 . . . . . . . . . . 1 1 Build 2 | . . . . . . 1 . . . . . . . . . . 1 . Repair Station Hacks 16 | . . . . . 4 . 4 . . 2 . . 6 . . . . . Scan Component 9 | . . . . . 2 . 2 . . 1 . . 4 . . . . . Repair 7 | . . . . . 2 . 2 . . 1 . . 2 . . . . . Recycling Unit Hacks 1 | . . . . . 1 . . . . . . . . . . . . . Report Inventory 1 | . . . . . 1 . . . . . . . . . . . . . Scanalyzer 1 | . . . . . . . . . . . . . . . . . 1 . Insert Component 1 | . . . . . . . . . . . . . . . . . 1 . Garrison Access Hacks 1 | . . . . . . . . . . . . . . . 1 . . . Unlock Access 1 | . . . . . . . . . . . . . . . 1 . . . Unauthorized Hacks . | . . . . . . . . . . . . . . . . . . . Terminals . | . . . . . . . . . . . . . . . . . . . Fabricators . | . . . . . . . . . . . . . . . . . . . Repair Stations . | . . . . . . . . . . . . . . . . . . . Recycling Units . | . . . . . . . . . . . . . . . . . . . Scanalyzers . | . . . . . . . . . . . . . . . . . . . Garrison Access . | . . . . . . . . . . . . . . . . . . . Data Cores Recovered . | . . . . . . . . . . . . . . . . . . . Used . | . . . . . . . . . . . . . . . . . . . Hacking Detections 30 | . 1 . . . 4 2 1 . . 3 . . 4 . 2 1 4 8 Full Trace Events 5 | . . . . . 1 . 1 . . . . . 2 . . . 1 . Feedback Events . | . . . . . . . . . . . . . . . . . . . Feedback Blocked . | . . . . . . . . . . . . . . . . . . . Robot Schematics Acquired . | . . . . . . . . . . . . . . . . . . . Robots Built 3 | . . . . . . 3 . . . . . . . . . . . . Authchips . | . . . . . . . . . . . . . . . . . . . Time 134 | . . . . . . 134 . . . . . . . . . . . . Total Robot Build Rating 12 | . . . . . . 12 . . . . . . . . . . . . Part Schematics Acquired . | . . . . . . . . . . . . . . . . . . . Parts Built . | . . . . . . . . . . . . . . . . . . . Authchips . | . . . . . . . . . . . . . . . . . . . Time 46 | . . . . . . . . . . . . . . . . . 46 . Total Part Build Rating . | . . . . . . . . . . . . . . . . . . . Parts Repaired 7 | . . . . . 2 . 2 . . 1 . . 2 . . . . . Time 458 | . . . . . 140 . 88 . . 56 . . 174 . . . . . Parts Recycled . | . . . . . . . . . . . . . . . . . . . Recycled Matter . | . . . . . . . . . . . . . . . . . . . Retrieved Matter . | . . . . . . . . . . . . . . . . . . . Retrieved Components . | . . . . . . . . . . . . . . . . . . . Parts Scanalyzed . | . . . . . . . . . . . . . . . . . . . Part Schematics Acquired . | . . . . . . . . . . . . . . . . . . . Parts Damaged . | . . . . . . . . . . . . . . . . . . . Bothacking | -11 -10 -10 -10 -9 -8 -7 -6 -6 -6 -5 -5 -5 -4 -3 -2 -2 -2 -1 ------------ Run | Yrd Mat Min Exi Min Mat Fac Fac DSF Gar Fac Upp Upp Fac Res Res Gar Res Acc Used RIF Installer . | . . . . . . . . . . . . . . . . . . . Robots Hacked 6 | . . . . . . . . 1 . . . . 4 1 . . . . Non-combat 5 | . . . . . . . . . . . . . 4 1 . . . . Combat 1 | . . . . . . . . 1 . . . . . . . . . . Robot Hacks Applied 11 | . . . . . . . . 1 . . . . 9 1 . . . . parse_system 3 | . . . . . . . . 1 . . . . 2 . . . . . no_distress 4 | . . . . . . . . . . . . . 4 . . . . . find_chute 1 | . . . . . . . . . . . . . 1 . . . . . find_recycling 1 | . . . . . . . . . . . . . 1 . . . . . find_station 2 | . . . . . . . . . . . . . 1 1 . . . . Relay Couplers Released 13 | . . . . . . . . . . 3 . . . . . 10 . . Machine Destruction 10 | . . . . . . . . . . . . . . . . 10 . . Programmers 3 | . . . . . . . . . . 3 . . . . . . . . Fabnet Peak Effective % . | . . . . . . . . . . . . . . . . . . . Robots Rewired 1 | . . . . . . . . . . . . . . . . 1 . . Allies Hacked . | . . . . . . . . . . . . . . . . . . . Hacks Repelled . | . . . . . . . . . . . . . . . . . . . Allies | -11 -10 -10 -10 -9 -8 -7 -6 -6 -6 -5 -5 -5 -4 -3 -2 -2 -2 -1 -------- Run | Yrd Mat Min Exi Min Mat Fac Fac DSF Gar Fac Upp Upp Fac Res Res Gar Res Acc Total Allies 7 | . . 3 . . . 3 . . . . . . . . . 1 . . Largest Group 3 | . . 3 3 3 3 3 . . . . . . . . . 1 . . Highest-Rated Group 60 | . . 40 40 40 40 60 . . . . . . . . . 58 . . Highest-Rated Ally 58 | . . 16 16 16 16 20 . . . . . . . . . 58 . . Initial Warlord ECA Mod 11 | . . . . . . . . . . . . . . . . . 6 5 Total Orders 4 | . . . . . 3 1 . . . . . . . . . . . . STAY 1 | . . . . . 1 . . . . . . . . . . . . . GUARD 3 | . . . . . 2 1 . . . . . . . . . . . . Ally Attacks 40 | . . . . . 29 8 . . . . . . . . . 3 . . Total Damage 571 | . . . . . 326 137 . . . . . . . . . 108 . . Kills 3 | . . . . . 2 . . . . . . . . . . 1 . . Allies Corrupted . | . . . . . . . . . . . . . . . . . . . Allies Melted 1 | . . . . . . . . . . . . . . . . 1 . . Intel | -11 -10 -10 -10 -9 -8 -7 -6 -6 -6 -5 -5 -5 -4 -3 -2 -2 -2 -1 ------- Run | Yrd Mat Min Exi Min Mat Fac Fac DSF Gar Fac Upp Upp Fac Res Res Gar Res Acc Active Infowar (turns) 12076 | . . 302 744 342 3563 628 184 431 110 976 235 . 422 . . . . 4139 Optics 429 | . . . . . . . . . . . . . . . . . . 429 Sensors 7424 | . . 302 744 342 3563 628 184 431 110 976 144 . . . . . . . Structural 455 | . . . . . . . . . . 455 . . . . . . . . Jamming 3710 | . . . . . . . . . . . . . . . . . . 3710 ECM 683 | . . . . . . . . . . . 91 . 422 . . . . 170 Robot Analysis Total . | . . . . . . . . . . . . . . . . . . . Derelict Logs Recovered 4 | . . 2 . 1 . . . . . . 1 . . . . . . . Drone Launches . | . . . . . . . . . . . . . . . . . . . Drone Recoveries . | . . . . . . . . . . . . . . . . . . . Exploration | -11 -10 -10 -10 -9 -8 -7 -6 -6 -6 -5 -5 -5 -4 -3 -2 -2 -2 -1 ------------- Run | Yrd Mat Min Exi Min Mat Fac Fac DSF Gar Fac Upp Upp Fac Res Res Gar Res Acc Turns Passed 20133 | 108 317 321 744 342 3843 628 184 431 110 1032 691 47 3975 55 52 1547 1388 4318 Spaces Moved 10023 | 69 201 231 654 325 1165 367 98 298 120 542 543 26 1294 63 88 1079 688 2172 Core 16 | 16 . . . . . . . . . . . . . . . . . . Treads . | . . . . . . . . . . . . . . . . . . . Legs 9577 | 53 201 231 654 325 1165 367 98 298 120 542 543 26 1294 . . 884 688 2088 Wheels . | . . . . . . . . . . . . . . . . . . . Hover 430 | . . . . . . . . . . . . . . 63 88 195 . 84 Flight . | . . . . . . . . . . . . . . . . . . . Fastest Speed 31 | 50 120 120 90 90 90 90 90 45 60 70 110 110 110 48 48 31 108 70 Average Speed 108 | 103 120 120 111 90 90 90 90 81 80 111 110 110 132 48 55 104 113 114 Slowest Speed 190 | 120 120 120 120 90 90 90 90 100 105 120 112 110 190 48 58 190 120 190 Overloaded Moves 218 | . . . . . . . . 122 79 17 . . . . . . . . Propulsion Burnouts . | . . . . . . . . . . . . . . . . . . . Robots Hopped . | . . . . . . . . . . . . . . . . . . . Potential Cave-ins . | . . . . . . . . . . . . . . . . . . . Cave-ins Triggered 1 | . . . . . . . . . . . 1 . . . . . . . Exploration Rate (%) 33 | 6 44 45 92 61 48 6 3 91 29 10 67 5 12 2 1 67 13 35 Regions Visited 18 Branch Regions 5 Pre-discovered Areas 3 | . . 1 1 . . . . . . . 1 . . . . . . . Known Exits Taken 7 | . . 1 1 1 1 1 1 . . . . . . . 1 . . . Unknown Exits Taken 8 | 1 1 . . . . . . . . 1 1 1 1 1 . . 1 . Scrap Searched 4 | . . 1 . 2 . . . . . . 1 . . . . . . . Spaces Dug 1 | . . . . . . . . . . . . . . . . . . 1 Terrain Destroyed 302 | . . . . . . . . 48 . 28 12 2 9 . . 5 27 171 Melee . | . . . . . . . . . . . . . . . . . . . Projectile 167 | . . . . . . . . . . 10 12 2 9 . . 5 27 102 AOE 135 | . . . . . . . . 48 . 18 . . . . . . . 69 Terrain Rammed . | . . . . . . . . . . . . . . . . . . . Walls Destroyed . | . . . . . . . . . . . . . . . . . . . Machines Disabled . | . . . . . . . . . . . . . . . . . . . Actions | -11 -10 -10 -10 -9 -8 -7 -6 -6 -6 -5 -5 -5 -4 -3 -2 -2 -2 -1 --------- Run | Yrd Mat Min Exi Min Mat Fac Fac DSF Gar Fac Upp Upp Fac Res Res Gar Res Acc Total 18096 | 98 248 259 668 374 3779 654 194 428 130 897 587 32 3443 86 90 1351 1191 3587 Wait 6647 | 10 4 1 11 50 2475 256 84 53 1 233 8 . 1955 19 . 90 363 1034 Move 10003 | 68 200 230 653 324 1164 366 97 297 119 541 542 25 1293 62 87 1076 687 2172 Hop . | . . . . . . . . . . . . . . . . . . . Pick Up 224 | 10 11 5 . . 13 14 2 14 . 28 4 . 35 . 1 19 27 41 Fast Attach 65 | . . . . . 5 . . 6 . 10 . . 12 . . 6 10 16 Attach 148 | 6 5 3 . . 6 2 7 4 7 14 9 2 25 2 2 6 7 41 Detach 14 | . . 1 . . . . 3 . . 2 1 . 5 1 . . . 1 Swap 184 | . 3 . 2 . 25 2 1 17 1 10 3 . 28 1 . 29 14 48 Drop 219 | . 9 5 2 . 10 8 . 10 1 22 . . 31 . . 38 36 47 Fire 561 | 4 16 9 . . 60 6 . 27 1 37 20 5 58 1 . 84 46 187 Melee . | . . . . . . . . . . . . . . . . . . . Ram . | . . . . . . . . . . . . . . . . . . . Kick 9 | . . 5 . . 2 . . . . . . . 1 . . . 1 . Crush . | . . . . . . . . . . . . . . . . . . . Escape Stasis . | . . . . . . . . . . . . . . . . . . . Rewire 3 | . . . . . . . . . . . . . . . . 3 . . Trap . | . . . . . . . . . . . . . . . . . . . Miscellaneous 19 | . . . . . 19 . . . . . . . . . . . . . Route ------- -11/Scrapyard -10/Materials -10/Mines -10/Exiles -9/Mines -8/Materials -7/Factory -6/Factory -6/DSF -6/Garrison -5/Factory -5/Upper Caves -5/Upper Caves -4/Factory -3/Research -2/Research -2/Garrison (discovered 2 exits: *Res x2) -2/Research -1/Access History --------- Turn | Location | Event 2 | -11/Scrapyard | Met Revision 17 67 | -11/Scrapyard | Discovered new exit (range 8) 109 | -11/Scrapyard | Entered Materials 318 | -10/Materials | Build established: Mutant 376 | -10/Materials | Discovered new exit (range 8) 426 | -10/Materials | Entered Mines 437 | -10/Mines | Met a Derelict bent on vengeance 440 | -10/Mines | Found a damaged Exp. Sensor Array with a note attached 443 | -10/Mines | Found Prototype Device 445 | -10/Mines | Identified Exp. Sensor Array 485 | -10/Mines | Assembled infested the area 565 | -10/Mines | Met 8R-AWN 689 | -10/Mines | Assisted by bots powering up and referring to "LRC-V3" 690 | -10/Mines | Learned location of Mines (-9) 708 | -10/Mines | Learned Materials stockpile data 737 | -10/Mines | Discovered new exit (range 5) 742 | -10/Mines | Identified exit to Exiles 747 | -10/Mines | Entered Exiles 747 | -10/Exiles | Accompanied by 3 allies 783 | -10/Exiles | Welcomed by 8R-AWN 824 | -10/Exiles | Met EX-HEX 874 | -10/Exiles | Met EX-DEC 903 | -10/Exiles | Learned location of Zion (-7) 981 | -10/Exiles | Visited The Gauntlet 1238 | -10/Exiles | Met EX-BIN 1257 | -10/Exiles | Aligned with FarCom system 1258 | -10/Exiles | Given EX-Vault access code 1313 | -10/Exiles | Opened EX-Vault 1322 | -10/Exiles | Found Potential Leg 1324 | -10/Exiles | Found Potential Leg 1344 | -10/Exiles | Warned to stay clear of 0b10 Research branches 1466 | -10/Exiles | Discovered new exit (range 12) 1477 | -10/Exiles | Identified exit to Mines 1491 | -10/Exiles | Left Exiles lab with Potential Leg 1491 | -10/Exiles | Entered Mines 1491 | -9/Mines | Accompanied by 3 allies 1588 | -9/Mines | Discovered new exit (range 10) 1595 | -9/Mines | Identified exit to Materials 1782 | -9/Mines | Build established: Skirmisher 1833 | -9/Mines | Entered Materials 1833 | -8/Materials | Accompanied by 3 allies 1833 | -8/Materials | Evolved 4 slots: Power x1, Utility x2, Weapon x1 2286 | -8/Materials | Build established: Assassin 2685 | -8/Materials | Central database locked down 3078 | -8/Materials | Build established: Skirmisher 4445 | -8/Materials | Repaired Exp. Sensor Array 4732 | -8/Materials | Build established: Assassin 5148 | -8/Materials | Build established: Skirmisher 5215 | -8/Materials | Repaired Shotgun 5588 | -8/Materials | Discovered new exit (range 15) 5675 | -8/Materials | Identified exit to Factory 5676 | -8/Materials | Entered Factory 5676 | -7/Factory | Evolved 2 slots: Propulsion x2 5741 | -7/Factory | Discovered new exit (range 4) 5744 | -7/Factory | Identified exit to Factory 6036 | -7/Factory | Fabricated B-48 Gladiator (x3) 6143 | -7/Factory | P-60 Hacker assimilated allied Gladiator 4b 6304 | -7/Factory | Entered another Factory area 6304 | -6/Factory | Evolved 2 slots: Utility x2 6368 | -6/Factory | Repaired Adv. Heat Sink 6410 | -6/Factory | Repaired Deuterium Engine 6482 | -6/Factory | Identified exit to DSF 6488 | -6/Factory | Entered DSF 6522 | -6/DSF | Additional patrols routed to DSF 6891 | -6/DSF | Discovered new exit (range 16) 6919 | -6/DSF | Identified exit to Garrison 6919 | -6/DSF | Entered Garrison 6943 | -6/Garrison | Triggered checkpoint 6980 | -6/Garrison | Spotted B-75 Beast 6985 | -6/Garrison | Triggered checkpoint 6987 | -6/Garrison | Triggered checkpoint 6990 | -6/Garrison | Triggered checkpoint 6992 | -6/Garrison | Triggered checkpoint 7021 | -6/Garrison | Discovered new exit (range 12) 7029 | -6/Garrison | Identified exit to Factory 7029 | -6/Garrison | Entered Factory 7029 | -5/Factory | Evolved 2 slots: Utility x1, Weapon x1 7055 | -5/Factory | Lost 9 parts (2n3u4w) 7213 | -5/Factory | Garrison activated, responded to threat 7444 | -5/Factory | Build established: Scavenger-Skirmisher 7787 | -5/Factory | Repaired KE Penetrator 7835 | -5/Factory | Discovered new exit (range 9) 8061 | -5/Factory | Entered Upper Caves 8083 | -5/Upper Caves | Attracted the attention of an 0b10 outpost 8167 | -5/Upper Caves | Attracted the attention of an 0b10 checkpoint 8205 | -5/Upper Caves | Crushed by falling debris 8289 | -5/Upper Caves | Lost 6 parts (1p1n2u2w) 8312 | -5/Upper Caves | Learned location of Armory (-4) 8494 | -5/Upper Caves | System corruption reached 10% 8651 | -5/Upper Caves | Build established: Scavenger-Tank 8691 | -5/Upper Caves | Spotted B-75 Beast 8745 | -5/Upper Caves | Discovered new exit (range 8) 8752 | -5/Upper Caves | Entered another Upper Caves area 8795 | -5/Upper Caves | Discovered new exit (range 4) 8799 | -5/Upper Caves | Entered Factory 8799 | -4/Factory | Evolved 2 slots: Power x1, Utility x1 9105 | -4/Factory | Lost 10 parts (2p3n4u1w) 9361 | -4/Factory | Build established: Scavenger-Skirmisher 9416 | -4/Factory | Repaired Broken Enh. Flexi-carbon Leg? 10367 | -4/Factory | Build established: Scavenger-Tank 10690 | -4/Factory | Build established: Scavenger-Skirmisher 11116 | -4/Factory | Build established: Scavenger-Tank 11862 | -4/Factory | Repaired Myomer Leg 11923 | -4/Factory | Found Quantum Capacitor 12386 | -4/Factory | Build established: Scavenger-Skirmisher 12756 | -4/Factory | Discovered new exit (range 6) 12774 | -4/Factory | Entered Research 12774 | -3/Research | Evolved 2 slots: Propulsion x2 12820 | -3/Research | Discovered new exit (range 14) 12829 | -3/Research | Entered another Research area 12829 | -2/Research | Evolved 2 slots: Propulsion x1, Utility x1 12850 | -2/Research | Identified exit to Garrison 12861 | -2/Research | Build established: Scavenger-Tank 12881 | -2/Research | Entered Garrison 12881 | -2/Garrison | Warlord forces raided the area 12885 | -2/Garrison | Triggered checkpoint 12973 | -2/Garrison | Triggered checkpoint 12981 | -2/Garrison | Spotted B-90 Cyclops 13045 | -2/Garrison | Destroyed B-90 Cyclops 13055 | -2/Garrison | Triggered checkpoint 13093 | -2/Garrison | Lost 18 allies 13161 | -2/Garrison | Triggered checkpoint 13330 | -2/Garrison | Warlord forces retreated 13517 | -2/Garrison | Discovered new exit (range 11) 13518 | -2/Garrison | Spotted B-86 Titan 13531 | -2/Garrison | Attempted to access garrison exit controls, blocked by remote lockdown 13693 | -2/Garrison | Triggered checkpoint 13760 | -2/Garrison | Garrison Relay disabled 14055 | -2/Garrison | Triggered checkpoint 14062 | -2/Garrison | Garrison Relay disabled 14099 | -2/Garrison | Discovered new exit (range 10) 14105 | -2/Garrison | Triggered checkpoint 14428 | -2/Garrison | Entered Research 14956 | -2/Research | Found Prototype Device 14960 | -2/Research | Identified Exp. Thermal Shield 14973 | -2/Research | Found Exp. Thermal Shield 15349 | -2/Research | Discovered new exit (range 10) 15546 | -2/Research | Garrison activated, responded to threat 15816 | -2/Research | Entered Access 15816 | -1/Access | Evolved 2 slots: Utility x2 17800 | -1/Access | System corruption reached 10% 17809 | -1/Access | Found Prototype Launcher 17811 | -1/Access | Identified Enh. Gamma Bomb Array 17813 | -1/Access | Found Prototype Processor 17815 | -1/Access | Identified Exp. Core Analyzer 17822 | -1/Access | Found Exp. Core Analyzer 18071 | -1/Access | Lost 6 parts (3p2u1w) 18137 | -1/Access | Lost 3 parts (1n1u1w) 18398 | -1/Access | Build established: Scavenger-Gunner 19773 | -1/Access | Spotted B-99 Colossus 19983 | -1/Access | Lost 10 parts (1p1n3u5w) 20047 | -1/Access | Core integrity fell below 50% 20072 | -1/Access | System corruption reached 30% 20115 | -1/Access | Core integrity fell below 20% 20134 | -1/Access | Destroyed by H-88 Terminator with KE Penetrator Last Messages --------------- 20114_ H-88 Terminator retrieves Drone. 20115_ Identified Exp. Power Amplifier. 20115_ Penetrated by Slug. 20116_ Slug penetrates Wall. 20119_ Slug penetrates Sealed Freight Elevator. 20123_ Acquired Imp. Remote Datajack. 20125_ System corrupted: Imp. Energy Well fused. 20127_ P-80 Master repels hacking attempt. 20128_ Repair Station disabled. 20128_ Slug penetrates Wall. 20131_ Slug penetrates P-80 Master. 20131_ Penetrated by Slug. 20131_ Backup Laser III tumbles out of repair station. 20131_ Backup Plating III tumbles out of repair station. 20133_ Anti-Orbital Battery disabled. 20134_ Slug penetrates Anti-Orbital Battery. [Achievement: First Step to Greatness] [Achievement: 5k Club] [Achievement: 10k Club] [Achievement: 20k Club] Map ----- +----------------------------------------------------+ | +%] % ??????????????? | | # % #??????????????? | | ##### !???????????????? | | # # """""" ???????????????? | | # " """""" #??????????????? | | " """""" "??????????????? | | # """""" ???????????????? | | #"##+###[ """""" ?"??????????????? | | ### [%* G?????????????? | | ###?# =!! "" "" ""?????????????? | | #???# ""R"" ""#????????????? | | ???##+##""" h """" ""#????????????? | | ???# # !! #??????????????? | | ???# # !h #??????????????? | | ???# + ! h #??????????????? | | ???# #"###"####"##h#########????????????????? | | ???# # ## #??????????????????? | | ???# # ## ! pp #??????????????????? | | ???######## ## p #??????????????????? | | ??????????# ## #??????????????????? | | ??????????# ## "" #??????????????????? | | ??????????# ## """ #??????????????????? | | ??????????# ## """" #??????????????????? | | ??????????# ## """" ""#??????????????????? | | ??????????# ## """" R"#??????????????????? | | ??????????# ## """"@ " "#??????????????????? | | ??????????# ## "" ! [#??????????????????? | | ??????????# ## "" #??????????????????? | | ??????????#####################??????????????????? | | ?????????????????????????????????????????????????? | | ?????????????????????????????????????????????????? | | ?????????????????????????????????????????????????? | | ?????????????????????????????????????????????????? | | ?????????????????????????????????????????????????? | | ?????????????????????????????????????????????????? | | ?????????????????????????????????????????????????? | | ?????????????????????????????????????????????????? | | ?????????????????????????????????????????????????? | | ?????????????????????????????????????????????????? | | ?????????????????????????????????????????????????? | | ?????????????????????????????????????????????????? | | ?????????????????????????????????????????????????? | | ?????????????????????????????????????????????????? | | ?????????????????????????????????????????????????? | | ?????????????????????????????????????????????????? | | | | | | | | | | | +----------------------------------------------------+ Best States ------------- Heat Dissipation 109 Coolant Potential 100 Energy Generation 65 Energy Capacity 1250 Matter Stores 550 Matter Capacity 550 Sight Range 20 Robot Scan Range 20 Terrain Scan Density 10 ECM Strength 2 Jamming Range 14 Power Amplification 40 Base Temperature (-) 100 Armor Coverage 225 Resistance: KI 20 Resistance: TH 50 Resistance: EX 45 Resistance: EM 20 Resistance: I 20 Resistance: S 20 Resistance: P 20 Weapon Shielding 66 Point Defense Rating 160 Phase Shifting 15 Evasion (%) 70 Targeting Accuracy 5 Target Analysis 8 Core Analysis 8 Matter Filtering 30 Energy Filtering 30 Particle Charging 20 Offensive Hacking 10 Item Schematics ----------------- None Robot Schematics ------------------ None Fabricated ------------ B-48 Gladiator | x3 | -7/Factory | Preloaded Repaired ---------- Exp. Sensor Array | 62% | -8/Materials Shotgun | 53% | -8/Materials Adv. Heat Sink | 42% | -6/Factory Deuterium Engine | 73% | -6/Factory KE Penetrator | 47% | -5/Factory Enh. Flexi-carbon Leg | 25% | -4/Factory | Broken Myomer Leg | 16% | -4/Factory Alien Tech Used ----------------- None Achievements -------------- 10k Club 20k Club 5k Club A New Friend Crack Shot Dangerous Findings Denied? First Step to Greatness Hey, That's Mine! Hunted I Spy It's Just You Librarian Loot Pinata Made in Tau Ceti IV My Command Is Your Wish No Explosion For You Novice Programmer One Hack Too Far Part-time Mechanic Please Form A Line Respectable Loadout Risk Taker Rockin' Loadout Safety First Serviceable Loadout Slippery One Storm Trooper System Compromised Total Silence Tourist Troublemaker Ultimate Loadout Uninvited Guest Unlikely Earthworm Challenges ------------ None Game ------ Seed StorageComponentDrive Manual? 0 Play Time 10:59:27 Cumulative 10.9 hours Start 2025.07.12 @ 23:18:43 End 2025.09.04 @ 21:13:19 Sessions 7 Manual Loads 0 Difficulty Adventurer Special Mode None Game No. 1 Rogue 0 Adventurer 1 Explorer 0 Win Type - Total 0 Types 0/0/0/0/0/0/0/0/0/0 Lore% 6 Gallery% 11 Achievement% 13 Wizard Run 0 Options --------- Layout 0 ASCII 0 Keyboard 0 Movement Mouse Keybinds 0 Fullscreen 1 Font 24/Tamsyn Map View 76x50 Zoom Use 1% Tactical HUD 1 Map Filters NONE Filters NONE Steam 1 RUN: 2cb4a315-372d-48b1-bd42-065d0d1fa399